[Event "Titled Tuesday Blitz September 27 Late 2022"]
[White "Kamsky, Gata"]
[Black "Jackson, James P"]
[WhiteFideId "2000024"]
[BlackFideId "416860"]
[WhiteElo "2666"]
[BlackElo "2174"]
[Result "1-0"]
[Round "01"]
[TimeControl "180+1"]
[Date "2022.09.27"]
[WhiteClock "0:00:24"]
[BlackClock "0:00:07"]

1. d4 {[%clk 0:03:00]}  Nf6 {[%clk 0:02:57]} 2. Nf3 {[%clk 0:02:59]}  g6 {[%clk 0:02:57]} 3. c3 {[%clk 0:02:57]}  Bg7 {[%clk 0:02:57]} 4. Bf4 {[%clk 0:02:57]}  d6 {[%clk 0:02:56]} 5. h3 {[%clk 0:02:55]}  O-O {[%clk 0:02:56]} 6. Nbd2 {[%clk 0:02:54]}  c5 {[%clk 0:02:56]} 7. dxc5 {[%clk 0:02:54]}  dxc5 {[%clk 0:02:56]} 8. e4 {[%clk 0:02:54]}  Nc6 {[%clk 0:02:54]} 9. Be2 {[%clk 0:02:53]}  b6 {[%clk 0:02:49]} 10. O-O {[%clk 0:02:52]}  Bb7 {[%clk 0:02:49]} 11. Re1 {[%clk 0:02:47]}  Qc8 {[%clk 0:02:28]} 12. a4 {[%clk 0:02:41]}  Rd8 {[%clk 0:02:26]} 13. Qc2 {[%clk 0:02:39]}  Nd7 {[%clk 0:02:20]} 14. Nc4 {[%clk 0:02:36]}  Ba6 {[%clk 0:01:54]} 15. Bf1 {[%clk 0:02:21]}  Nf8 {[%clk 0:01:50]} 16. Qb3 {[%clk 0:02:14]}  Ne6 {[%clk 0:01:46]} 17. Bg3 {[%clk 0:02:13]}  Bxc4 {[%clk 0:01:35]} 18. Qxc4 {[%clk 0:02:11]}  Na5 {[%clk 0:01:36]} 19. Qe2 {[%clk 0:01:57]}  c4 {[%clk 0:01:36]} 20. Nd2 {[%clk 0:01:55]}  Nc5 {[%clk 0:00:56]} 21. Nxc4 {[%clk 0:01:46]}  Nd3 {[%clk 0:00:56]} 22. Nxa5 {[%clk 0:01:43]}  Nxe1 {[%clk 0:00:56]} 23. Nb3 {[%clk 0:01:36]}  Nd3 {[%clk 0:00:55]} 24. e5 {[%clk 0:01:30]}  Nc5 {[%clk 0:00:54]} 25. Nd4 {[%clk 0:01:29]}  Ne6 {[%clk 0:00:51]} 26. Nf3 {[%clk 0:01:07]}  Qc5 {[%clk 0:00:49]} 27. Qe4 {[%clk 0:01:03]}  Rac8 {[%clk 0:00:48]} 28. Re1 {[%clk 0:01:01]}  Qd5 {[%clk 0:00:42]} 29. Qb4 {[%clk 0:00:50]}  Nc5 {[%clk 0:00:33]} 30. Nd4 {[%clk 0:00:44]}  e6 {[%clk 0:00:29]} 31. Bc4 {[%clk 0:00:40]}  Qb7 {[%clk 0:00:22]} 32. Nb5 {[%clk 0:00:40]}  Nd3 {[%clk 0:00:16]} 33. Bxd3 {[%clk 0:00:38]}  Rxd3 {[%clk 0:00:17]} 34. Nd6 {[%clk 0:00:37]}  Qa6 {[%clk 0:00:08]} 35. Nxc8 {[%clk 0:00:37]}  Qxc8 {[%clk 0:00:09]} 36. Qe4 {[%clk 0:00:34]}  Qd7 {[%clk 0:00:09]} 37. Bf4 {[%clk 0:00:32]}  h6 {[%clk 0:00:09]} 38. h4 {[%clk 0:00:32]}  Kh7 {[%clk 0:00:09]} 39. h5 {[%clk 0:00:32]}  Qd5 {[%clk 0:00:08]} 40. g4 {[%clk 0:00:29]}  Qxe4 {[%clk 0:00:08]} 41. Rxe4 {[%clk 0:00:28]}  gxh5 {[%clk 0:00:08]} 42. gxh5 {[%clk 0:00:28]}  Rd1+ {[%clk 0:00:07]} 43. Kg2 {[%clk 0:00:28]}  Rb1 {[%clk 0:00:08]} 44. Rb4 {[%clk 0:00:27]}  Bf8 {[%clk 0:00:07]} 45. Rd4 {[%clk 0:00:27]}  Rxb2 {[%clk 0:00:06]} 46. Rd7 {[%clk 0:00:26]}  Kg8 {[%clk 0:00:06]} 47. Be3 {[%clk 0:00:26]}  a6 {[%clk 0:00:05]} 48. Ra7 {[%clk 0:00:25]}  b5 {[%clk 0:00:05]} 49. Rxa6 {[%clk 0:00:25]}  b4 {[%clk 0:00:04]} 50. cxb4 {[%clk 0:00:24]}  Bxb4 {[%clk 0:00:05]} 51. Kf3 {[%clk 0:00:24]}  Kg7 {[%clk 0:00:05]} 52. Rb6 {[%clk 0:00:23]}  Bc3 {[%clk 0:00:06]} 53. Rxb2 {[%clk 0:00:23]}  Bxb2 {[%clk 0:00:07]} 54. Ke4 {[%clk 0:00:23]}  Kf8 {[%clk 0:00:07]} 55. a5 {[%clk 0:00:24]}  Ke8 {[%clk 0:00:07]} 56. a6 {[%clk 0:00:24]} 1-0


[Site "https://www.chess.com"]

[Event "Titled Tuesday Blitz September 27 Late 2022"]
[White "Lin, Dachey"]
[Black "Diaz Herquinio, Brahian"]
[WhiteFideId "2029650"]
[BlackFideId "3809480"]
[WhiteElo "2313"]
[BlackElo "1965"]
[Result "1/2-1/2"]
[Round "01"]
[TimeControl "180+1"]
[Date "2022.09.28"]
[WhiteClock "0:00:14"]
[BlackClock "0:00:20"]

1. g4 {[%clk 0:03:00]}  d5 {[%clk 0:02:59]} 2. Bg2 {[%clk 0:03:00]}  Bxg4 {[%clk 0:02:57]} 3. c4 {[%clk 0:03:00]}  Bc8 {[%clk 0:02:51]} 4. cxd5 {[%clk 0:03:00]}  Nf6 {[%clk 0:02:51]} 5. Nc3 {[%clk 0:03:00]}  c6 {[%clk 0:02:50]} 6. e4 {[%clk 0:02:49]}  e6 {[%clk 0:02:48]} 7. dxe6 {[%clk 0:02:39]}  Bxe6 {[%clk 0:02:49]} 8. d4 {[%clk 0:02:40]}  Bb4 {[%clk 0:02:42]} 9. Ne2 {[%clk 0:02:40]}  O-O {[%clk 0:02:41]} 10. Bg5 {[%clk 0:02:39]}  h6 {[%clk 0:02:41]} 11. Bh4 {[%clk 0:02:36]}  g5 {[%clk 0:02:26]} 12. Bg3 {[%clk 0:02:35]}  Re8 {[%clk 0:02:13]} 13. a3 {[%clk 0:02:31]}  Bxc3+ {[%clk 0:02:11]} 14. Nxc3 {[%clk 0:02:32]}  Bg4 {[%clk 0:02:10]} 15. Qd3 {[%clk 0:02:27]}  Nbd7 {[%clk 0:02:09]} 16. O-O {[%clk 0:02:23]}  Nc5 {[%clk 0:02:06]} 17. Qe3 {[%clk 0:02:22]}  Nb3 {[%clk 0:01:49]} 18. e5 {[%clk 0:02:10]}  Nxa1 {[%clk 0:01:44]} 19. Rxa1 {[%clk 0:02:11]}  Qd7 {[%clk 0:01:39]} 20. f4 {[%clk 0:02:00]}  gxf4 {[%clk 0:01:26]} 21. Qxf4 {[%clk 0:01:59]}  Nh5 {[%clk 0:01:25]} 22. Qe3 {[%clk 0:01:22]}  Rad8 {[%clk 0:01:22]} 23. Bf2 {[%clk 0:01:21]}  Ng7 {[%clk 0:01:04]} 24. Ne4 {[%clk 0:01:20]}  Nh5 {[%clk 0:00:51]} 25. Qxh6 {[%clk 0:01:18]}  Qf5 {[%clk 0:00:44]} 26. Rf1 {[%clk 0:01:07]}  Qg6 {[%clk 0:00:43]} 27. Qc1 {[%clk 0:00:57]}  Bh3 {[%clk 0:00:39]} 28. Qg5 {[%clk 0:00:45]}  Bxg2 {[%clk 0:00:38]} 29. Qxg6+ {[%clk 0:00:45]}  fxg6 {[%clk 0:00:37]} 30. Kxg2 {[%clk 0:00:46]}  Nf4+ {[%clk 0:00:36]} 31. Kf3 {[%clk 0:00:45]}  Ne6 {[%clk 0:00:35]} 32. Nf6+ {[%clk 0:00:44]}  Kg7 {[%clk 0:00:34]} 33. Nxe8+ {[%clk 0:00:45]}  Rxe8 {[%clk 0:00:35]} 34. Ke2 {[%clk 0:00:36]}  Rf8 {[%clk 0:00:34]} 35. Rd1 {[%clk 0:00:37]}  Nc7 {[%clk 0:00:34]} 36. Bh4 {[%clk 0:00:36]}  Nd5 {[%clk 0:00:34]} 37. Rg1 {[%clk 0:00:36]}  Rf4 {[%clk 0:00:33]} 38. Bf2 {[%clk 0:00:35]}  Kf7 {[%clk 0:00:31]} 39. Rg3 {[%clk 0:00:35]}  Rf5 {[%clk 0:00:30]} 40. Be3 {[%clk 0:00:34]}  Rh5 {[%clk 0:00:29]} 41. h3 {[%clk 0:00:34]}  a5 {[%clk 0:00:27]} 42. Kd3 {[%clk 0:00:35]}  b5 {[%clk 0:00:27]} 43. Ke4 {[%clk 0:00:35]}  Rh4+ {[%clk 0:00:26]} 44. Kd3 {[%clk 0:00:35]}  b4 {[%clk 0:00:27]} 45. Rf3+ {[%clk 0:00:34]}  Ke6 {[%clk 0:00:26]} 46. Kc4 {[%clk 0:00:30]}  bxa3 {[%clk 0:00:24]} 47. bxa3 {[%clk 0:00:31]}  Re4 {[%clk 0:00:23]} 48. Bg5 {[%clk 0:00:23]}  Re2 {[%clk 0:00:22]} 49. h4 {[%clk 0:00:23]}  Rc2+ {[%clk 0:00:22]} 50. Kb3 {[%clk 0:00:23]}  Re2 {[%clk 0:00:21]} 51. Ka4 {[%clk 0:00:24]}  Re4 {[%clk 0:00:20]} 52. Rd3 {[%clk 0:00:24]}  c5 {[%clk 0:00:17]} 53. Kxa5 {[%clk 0:00:23]}  Rxd4 {[%clk 0:00:18]} 54. Rf3 {[%clk 0:00:16]}  Kxe5 {[%clk 0:00:18]} 55. Kb5 {[%clk 0:00:16]}  Rd1 {[%clk 0:00:17]} 56. a4 {[%clk 0:00:16]}  Rb1+ {[%clk 0:00:18]} 57. Kc6 {[%clk 0:00:17]}  Nb4+ {[%clk 0:00:18]} 58. Kxc5 {[%clk 0:00:17]}  Na6+ {[%clk 0:00:18]} 59. Kc6 {[%clk 0:00:17]}  Nb4+ {[%clk 0:00:18]} 60. Kd7 {[%clk 0:00:18]}  Nd5 {[%clk 0:00:19]} 61. a5 {[%clk 0:00:17]}  Ra1 {[%clk 0:00:18]} 62. Bd8 {[%clk 0:00:15]}  Ra2 {[%clk 0:00:18]} 63. Rg3 {[%clk 0:00:15]}  Kf5 {[%clk 0:00:18]} 64. Rg5+ {[%clk 0:00:15]}  Ke4 {[%clk 0:00:18]} 65. Rxg6 {[%clk 0:00:15]}  Nf4 {[%clk 0:00:19]} 66. Rd6 {[%clk 0:00:15]}  Nd3 {[%clk 0:00:18]} 67. Kc6 {[%clk 0:00:12]}  Nb4+ {[%clk 0:00:17]} 68. Kb7 {[%clk 0:00:12]}  Ke5 {[%clk 0:00:17]} 69. Bc7 {[%clk 0:00:11]}  Nd5 {[%clk 0:00:17]} 70. Rc6+ {[%clk 0:00:08]}  Nxc7 {[%clk 0:00:16]} 71. Rxc7 {[%clk 0:00:07]}  Rxa5 {[%clk 0:00:17]} 72. h5 {[%clk 0:00:07]}  Kf6 {[%clk 0:00:17]} 73. h6 {[%clk 0:00:07]}  Rh5 {[%clk 0:00:17]} 74. Rc6+ {[%clk 0:00:05]}  Kf7 {[%clk 0:00:17]} 75. Rc7+ {[%clk 0:00:05]}  Kg6 {[%clk 0:00:17]} 76. Rc6+ {[%clk 0:00:06]}  Kh7 {[%clk 0:00:18]} 77. Rc3 {[%clk 0:00:06]}  Kxh6 {[%clk 0:00:18]} 78. Kc6 {[%clk 0:00:06]}  Rg5 {[%clk 0:00:19]} 79. Kd6 {[%clk 0:00:07]}  Rg6+ {[%clk 0:00:19]} 80. Ke7 {[%clk 0:00:08]}  Rg2 {[%clk 0:00:19]} 81. Kf6 {[%clk 0:00:08]}  Rf2+ {[%clk 0:00:19]} 82. Ke6 {[%clk 0:00:08]}  Kg5 {[%clk 0:00:20]} 83. Re3 {[%clk 0:00:06]}  Kf4 {[%clk 0:00:20]} 84. Re5 {[%clk 0:00:07]}  Ra2 {[%clk 0:00:20]} 85. Kf6 {[%clk 0:00:06]}  Ra6+ {[%clk 0:00:20]} 86. Re6 {[%clk 0:00:07]}  Ra1 {[%clk 0:00:20]} 87. Rb6 {[%clk 0:00:07]}  Rh1 {[%clk 0:00:19]} 88. Rb4+ {[%clk 0:00:07]}  Ke3 {[%clk 0:00:19]} 89. Rb3+ {[%clk 0:00:08]}  Kd4 {[%clk 0:00:19]} 90. Kf5 {[%clk 0:00:09]}  Rf1+ {[%clk 0:00:19]} 91. Ke6 {[%clk 0:00:09]}  Re1+ {[%clk 0:00:18]} 92. Kd6 {[%clk 0:00:09]}  Rh1 {[%clk 0:00:18]} 93. Rb4+ {[%clk 0:00:09]}  Kc3 {[%clk 0:00:18]} 94. Rg4 {[%clk 0:00:10]}  Rh6+ {[%clk 0:00:18]} 95. Kc5 {[%clk 0:00:10]}  Rh5+ {[%clk 0:00:18]} 96. Kb6 {[%clk 0:00:11]}  Kd3 {[%clk 0:00:18]} 97. Kc6 {[%clk 0:00:11]}  Ke3 {[%clk 0:00:18]} 98. Ra4 {[%clk 0:00:11]}  Kd3 {[%clk 0:00:18]} 99. Ra3+ {[%clk 0:00:11]}  Kc4 {[%clk 0:00:19]} 100. Ra4+ {[%clk 0:00:12]}  Kb3 {[%clk 0:00:19]} 101. Rg4 {[%clk 0:00:12]}  Kc3 {[%clk 0:00:19]} 102. Rg3+ {[%clk 0:00:13]}  Kc4 {[%clk 0:00:19]} 103. Rg4+ {[%clk 0:00:13]}  Kc3 {[%clk 0:00:19]} 104. Rg3+ {[%clk 0:00:14]}  Kc4 {[%clk 0:00:20]} 105. Rg4+ {[%clk 0:00:14]}  Kc3 {[%clk 0:00:20]} 1/2-1/2


[Site "https://www.chess.com"]

[Event "Titled Tuesday Blitz September 27 Late 2022"]
[White "Martinez Reyes, Pedro Ramon"]
[Black "Martinez Alcantara, Jose Eduardo"]
[WhiteFideId "3901807"]
[BlackFideId "3805662"]
[WhiteElo "2327"]
[BlackElo "2703"]
[Result "0-1"]
[Round "01"]
[TimeControl "180+1"]
[Date "2022.09.27"]
[WhiteClock "0:00:19"]
[BlackClock "0:01:23"]

1. e4 {[%clk 0:03:00]}  e5 {[%clk 0:02:59]} 2. Nf3 {[%clk 0:03:00]}  Nf6 {[%clk 0:03:00]} 3. Nc3 {[%clk 0:02:58]}  Nc6 {[%clk 0:03:00]} 4. Be2 {[%clk 0:02:58]}  d6 {[%clk 0:02:59]} 5. d4 {[%clk 0:02:57]}  exd4 {[%clk 0:03:00]} 6. Nxd4 {[%clk 0:02:57]}  g6 {[%clk 0:03:00]} 7. Be3 {[%clk 0:02:53]}  Bg7 {[%clk 0:02:58]} 8. Nxc6 {[%clk 0:02:53]}  bxc6 {[%clk 0:02:57]} 9. Qd2 {[%clk 0:02:53]}  O-O {[%clk 0:02:57]} 10. Bh6 {[%clk 0:02:53]}  Qe7 {[%clk 0:02:51]} 11. Bxg7 {[%clk 0:02:47]}  Kxg7 {[%clk 0:02:52]} 12. f3 {[%clk 0:02:47]}  d5 {[%clk 0:02:52]} 13. O-O-O {[%clk 0:02:37]}  Rd8 {[%clk 0:02:46]} 14. Rhe1 {[%clk 0:02:12]}  Be6 {[%clk 0:02:46]} 15. e5 {[%clk 0:02:10]}  Nd7 {[%clk 0:02:46]} 16. f4 {[%clk 0:02:03]}  Rab8 {[%clk 0:02:39]} 17. g4 {[%clk 0:02:02]}  Qb4 {[%clk 0:02:38]} 18. b3 {[%clk 0:02:00]}  Nc5 {[%clk 0:02:14]} 19. f5 {[%clk 0:01:46]}  d4 {[%clk 0:02:14]} 20. f6+ {[%clk 0:01:19]}  Kh8 {[%clk 0:02:14]} 21. Qh6 {[%clk 0:00:49]}  Rg8 {[%clk 0:02:13]} 22. Nb1 {[%clk 0:00:50]}  g5 {[%clk 0:01:33]} 23. Bd3 {[%clk 0:00:39]}  Nxd3+ {[%clk 0:01:32]} 24. cxd3 {[%clk 0:00:37]}  Bxg4 {[%clk 0:01:25]} 25. Rd2 {[%clk 0:00:36]}  Rg6 {[%clk 0:01:24]} 26. Qxg6 {[%clk 0:00:26]}  hxg6 {[%clk 0:01:23]} 27. Re4 {[%clk 0:00:21]}  Bf5 {[%clk 0:01:23]} 28. Re1 {[%clk 0:00:19]}  a5 {[%clk 0:01:23]} 0-1


[Site "https://www.chess.com"]

[Event "Titled Tuesday Blitz September 27 Late 2022"]
[White "Melaugh, Shane"]
[Black "Abdisalimov, Abdimalik"]
[WhiteFideId "2509580"]
[BlackFideId "14206323"]
[WhiteElo "1946"]
[BlackElo "2401"]
[Result "0-1"]
[Round "01"]
[TimeControl "180+1"]
[Date "2022.09.27"]
[WhiteClock "0:00:04"]
[BlackClock "0:00:18"]

1. c4 {[%clk 0:03:00]}  g6 {[%clk 0:02:59]} 2. Nc3 {[%clk 0:02:59]}  Bg7 {[%clk 0:03:00]} 3. g3 {[%clk 0:02:58]}  c5 {[%clk 0:02:58]} 4. Bg2 {[%clk 0:02:59]}  Nc6 {[%clk 0:02:59]} 5. e4 {[%clk 0:02:58]}  a6 {[%clk 0:02:59]} 6. Nge2 {[%clk 0:02:58]}  Rb8 {[%clk 0:02:59]} 7. d3 {[%clk 0:02:40]}  b5 {[%clk 0:02:58]} 8. O-O {[%clk 0:02:37]}  e6 {[%clk 0:02:58]} 9. Be3 {[%clk 0:02:28]}  Nd4 {[%clk 0:02:58]} 10. Bf4 {[%clk 0:02:17]}  d6 {[%clk 0:02:53]} 11. cxb5 {[%clk 0:02:14]}  axb5 {[%clk 0:02:37]} 12. Nxd4 {[%clk 0:02:13]}  cxd4 {[%clk 0:02:26]} 13. Nb1 {[%clk 0:02:00]}  e5 {[%clk 0:02:21]} 14. Bc1 {[%clk 0:01:59]}  Ne7 {[%clk 0:02:20]} 15. Nd2 {[%clk 0:02:00]}  O-O {[%clk 0:02:19]} 16. f4 {[%clk 0:01:53]}  Be6 {[%clk 0:02:00]} 17. Nf3 {[%clk 0:01:53]}  h6 {[%clk 0:01:57]} 18. Bd2 {[%clk 0:01:42]}  f5 {[%clk 0:01:57]} 19. Nh4 {[%clk 0:01:30]}  Kh7 {[%clk 0:01:51]} 20. a3 {[%clk 0:00:53]}  Qd7 {[%clk 0:01:36]} 21. Rc1 {[%clk 0:00:44]}  Rbe8 {[%clk 0:01:34]} 22. Ba5 {[%clk 0:00:37]}  Rc8 {[%clk 0:01:22]} 23. Qe2 {[%clk 0:00:30]}  Nc6 {[%clk 0:01:18]} 24. Bd2 {[%clk 0:00:30]}  Ne7 {[%clk 0:01:03]} 25. Bb4 {[%clk 0:00:20]}  Rf7 {[%clk 0:00:50]} 26. Rxc8 {[%clk 0:00:19]}  Nxc8 {[%clk 0:00:49]} 27. Bxd6 {[%clk 0:00:19]}  Qxd6 {[%clk 0:00:37]} 28. fxe5 {[%clk 0:00:16]}  Qxe5 {[%clk 0:00:37]} 29. Nf3 {[%clk 0:00:15]}  Qd6 {[%clk 0:00:35]} 30. e5 {[%clk 0:00:14]}  Qb6 {[%clk 0:00:33]} 31. Nh4 {[%clk 0:00:11]}  Ne7 {[%clk 0:00:31]} 32. g4 {[%clk 0:00:09]}  fxg4 {[%clk 0:00:28]} 33. Be4 {[%clk 0:00:08]}  Rxf1+ {[%clk 0:00:26]} 34. Qxf1 {[%clk 0:00:09]}  Qc5 {[%clk 0:00:18]} 35. h3 {[%clk 0:00:05]}  Qxe5 {[%clk 0:00:18]} 36. Qg2 {[%clk 0:00:04]}  Qg5 {[%clk 0:00:18]} 0-1


[Site "https://www.chess.com"]

[Event "Titled Tuesday Blitz September 27 Late 2022"]
[White "Milikow, Yoav"]
[Black "Sam, Gabriel"]
[WhiteFideId "2822237"]
[BlackFideId "75000776"]
[WhiteElo "2341"]
[BlackElo "2449"]
[Result "1-0"]
[Round "01"]
[TimeControl "180+1"]
[Date "2022.09.28"]
[WhiteClock "0:00:16"]
[BlackClock "0:00:10"]

1. d4 {[%clk 0:03:00]}  Nf6 {[%clk 0:02:58]} 2. c4 {[%clk 0:03:00]}  e6 {[%clk 0:02:57]} 3. Nc3 {[%clk 0:02:58]}  Bb4 {[%clk 0:02:55]} 4. Qc2 {[%clk 0:02:56]}  O-O {[%clk 0:02:53]} 5. e4 {[%clk 0:02:55]}  d5 {[%clk 0:02:49]} 6. e5 {[%clk 0:02:56]}  Ne4 {[%clk 0:02:48]} 7. Bd3 {[%clk 0:02:56]}  c5 {[%clk 0:02:47]} 8. Nf3 {[%clk 0:02:56]}  cxd4 {[%clk 0:02:34]} 9. Nxd4 {[%clk 0:02:57]}  Nd7 {[%clk 0:02:02]} 10. Bf4 {[%clk 0:02:55]}  Ndc5 {[%clk 0:02:00]} 11. O-O {[%clk 0:02:44]}  Nxd3 {[%clk 0:01:50]} 12. Qxd3 {[%clk 0:02:44]}  Nxc3 {[%clk 0:01:35]} 13. bxc3 {[%clk 0:02:42]}  Be7 {[%clk 0:01:26]} 14. Rfd1 {[%clk 0:02:31]}  Qa5 {[%clk 0:00:52]} 15. Qg3 {[%clk 0:02:14]}  Rd8 {[%clk 0:00:38]} 16. Bg5 {[%clk 0:01:51]}  Bxg5 {[%clk 0:00:34]} 17. Qxg5 {[%clk 0:01:52]}  h6 {[%clk 0:00:35]} 18. Nb3 {[%clk 0:01:31]}  Qc7 {[%clk 0:00:25]} 19. Qf4 {[%clk 0:01:25]}  dxc4 {[%clk 0:00:20]} 20. Rxd8+ {[%clk 0:01:23]}  Qxd8 {[%clk 0:00:21]} 21. Qxc4 {[%clk 0:01:24]}  Bd7 {[%clk 0:00:22]} 22. Rd1 {[%clk 0:01:23]}  Qe8 {[%clk 0:00:20]} 23. Nc5 {[%clk 0:01:20]}  Bc6 {[%clk 0:00:20]} 24. Rd6 {[%clk 0:01:19]}  Bd5 {[%clk 0:00:17]} 25. Qb4 {[%clk 0:01:16]}  Rc8 {[%clk 0:00:17]} 26. Nd7 {[%clk 0:01:11]}  Rc4 {[%clk 0:00:15]} 27. Qb5 {[%clk 0:01:04]}  Qc8 {[%clk 0:00:14]} 28. h3 {[%clk 0:00:53]}  Rxc3 {[%clk 0:00:15]} 29. Qb4 {[%clk 0:00:52]}  Rc1+ {[%clk 0:00:15]} 30. Kh2 {[%clk 0:00:52]}  Qc2 {[%clk 0:00:13]} 31. Qg4 {[%clk 0:00:51]}  Qg6 {[%clk 0:00:06]} 32. Qxg6 {[%clk 0:00:32]}  fxg6 {[%clk 0:00:07]} 33. Nb8 {[%clk 0:00:33]}  Rc8 {[%clk 0:00:07]} 34. Nd7 {[%clk 0:00:32]}  Kf7 {[%clk 0:00:08]} 35. Kg3 {[%clk 0:00:26]}  Ke7 {[%clk 0:00:08]} 36. a4 {[%clk 0:00:26]}  Rc3+ {[%clk 0:00:07]} 37. f3 {[%clk 0:00:26]}  Rc8 {[%clk 0:00:04]} 38. a5 {[%clk 0:00:25]}  Rd8 {[%clk 0:00:03]} 39. Nf6 {[%clk 0:00:15]}  Rxd6 {[%clk 0:00:04]} 40. Ng8+ {[%clk 0:00:16]}  Kf7 {[%clk 0:00:04]} 41. exd6 {[%clk 0:00:16]}  Bc6 {[%clk 0:00:04]} 42. Ne7 {[%clk 0:00:16]}  e5 {[%clk 0:00:04]} 43. a6 {[%clk 0:00:16]}  bxa6 {[%clk 0:00:02]} 44. Nxc6 {[%clk 0:00:16]}  Ke6 {[%clk 0:00:03]} 45. d7 {[%clk 0:00:13]}  Kxd7 {[%clk 0:00:03]} 46. Nxe5+ {[%clk 0:00:13]}  Ke6 {[%clk 0:00:03]} 47. Kf4 {[%clk 0:00:14]}  a5 {[%clk 0:00:04]} 48. Ke4 {[%clk 0:00:14]}  a4 {[%clk 0:00:04]} 49. Nc4 {[%clk 0:00:13]}  Kf6 {[%clk 0:00:05]} 50. f4 {[%clk 0:00:14]}  Ke6 {[%clk 0:00:04]} 51. g4 {[%clk 0:00:14]}  Kf6 {[%clk 0:00:05]} 52. h4 {[%clk 0:00:14]}  Ke6 {[%clk 0:00:05]} 53. g5 {[%clk 0:00:13]}  h5 {[%clk 0:00:03]} 54. Na3 {[%clk 0:00:11]}  a6 {[%clk 0:00:04]} 55. Nc4 {[%clk 0:00:12]}  Kd7 {[%clk 0:00:01]} 56. Kd5 {[%clk 0:00:12]}  Ke7 {[%clk 0:00:01]} 57. Ke5 {[%clk 0:00:11]}  Kd7 {[%clk 0:00:02]} 58. Kd5 {[%clk 0:00:10]}  Kc7 {[%clk 0:00:02]} 59. Ke6 {[%clk 0:00:10]}  Kc6 {[%clk 0:00:03]} 60. Kf7 {[%clk 0:00:09]}  Kc5 {[%clk 0:00:03]} 61. Na3 {[%clk 0:00:09]}  Kb4 {[%clk 0:00:04]} 62. Nb1 {[%clk 0:00:09]}  a3 {[%clk 0:00:04]} 63. Nxa3 {[%clk 0:00:10]}  Kxa3 {[%clk 0:00:05]} 64. Kxg6 {[%clk 0:00:10]}  a5 {[%clk 0:00:06]} 65. f5 {[%clk 0:00:11]}  a4 {[%clk 0:00:05]} 66. f6 {[%clk 0:00:12]}  gxf6 {[%clk 0:00:06]} 67. gxf6 {[%clk 0:00:13]}  Kb2 {[%clk 0:00:06]} 68. f7 {[%clk 0:00:14]}  a3 {[%clk 0:00:07]} 69. f8=Q {[%clk 0:00:15]}  a2 {[%clk 0:00:08]} 70. Qf6+ {[%clk 0:00:15]}  Kb1 {[%clk 0:00:08]} 71. Kxh5 {[%clk 0:00:15]}  a1=Q {[%clk 0:00:09]} 72. Qf1+ {[%clk 0:00:15]}  Ka2 {[%clk 0:00:09]} 73. Qxa1+ {[%clk 0:00:15]}  Kxa1 {[%clk 0:00:10]} 74. Kg6 {[%clk 0:00:16]} 1-0


[Site "https://www.chess.com"]

[Event "Titled Tuesday Blitz September 27 Late 2022"]
[White "Muradli, Mahammad"]
[Black "Urbina Perez, Juan Antonio"]
[WhiteFideId "13409301"]
[BlackFideId "2217368"]
[WhiteElo "2611"]
[BlackElo "2197"]
[Result "1-0"]
[Round "01"]
[TimeControl "180+1"]
[Date "2022.09.27"]
[WhiteClock "0:01:56"]
[BlackClock "0:01:50"]

1. Nf3 {[%clk 0:03:00]}  d5 {[%clk 0:02:56]} 2. e3 {[%clk 0:02:55]}  Nf6 {[%clk 0:02:51]} 3. c4 {[%clk 0:02:56]}  c6 {[%clk 0:02:52]} 4. Nc3 {[%clk 0:02:56]}  g6 {[%clk 0:02:51]} 5. d4 {[%clk 0:02:55]}  Bg7 {[%clk 0:02:50]} 6. Bd3 {[%clk 0:02:55]}  O-O {[%clk 0:02:50]} 7. O-O {[%clk 0:02:55]}  Bg4 {[%clk 0:02:49]} 8. cxd5 {[%clk 0:02:54]}  cxd5 {[%clk 0:02:47]} 9. Bd2 {[%clk 0:02:54]}  Nc6 {[%clk 0:02:46]} 10. Rc1 {[%clk 0:02:54]}  Bxf3 {[%clk 0:02:46]} 11. Qxf3 {[%clk 0:02:55]}  e5 {[%clk 0:02:46]} 12. dxe5 {[%clk 0:02:55]}  Nxe5 {[%clk 0:02:47]} 13. Qe2 {[%clk 0:02:56]}  Nxd3 {[%clk 0:02:47]} 14. Qxd3 {[%clk 0:02:57]}  Rc8 {[%clk 0:02:44]} 15. Nb5 {[%clk 0:02:49]}  a6 {[%clk 0:02:37]} 16. Rxc8 {[%clk 0:02:48]}  Qxc8 {[%clk 0:02:38]} 17. Rc1 {[%clk 0:02:48]}  Qd7 {[%clk 0:02:33]} 18. Nd4 {[%clk 0:02:46]}  Rc8 {[%clk 0:02:32]} 19. Bc3 {[%clk 0:02:19]}  Ne4 {[%clk 0:02:24]} 20. g3 {[%clk 0:02:19]}  Nxc3 {[%clk 0:02:21]} 21. Rxc3 {[%clk 0:02:20]}  Rxc3 {[%clk 0:02:20]} 22. Qxc3 {[%clk 0:02:20]}  Bxd4 {[%clk 0:02:19]} 23. Qxd4 {[%clk 0:02:20]}  Qc6 {[%clk 0:02:17]} 24. a3 {[%clk 0:02:19]}  b5 {[%clk 0:02:05]} 25. h4 {[%clk 0:02:19]}  h5 {[%clk 0:02:04]} 26. Kg2 {[%clk 0:02:19]}  Qc4 {[%clk 0:01:50]} 27. Qxc4 {[%clk 0:02:01]}  dxc4 {[%clk 0:01:51]} 28. Kf3 {[%clk 0:02:01]}  a5 {[%clk 0:01:52]} 29. Ke4 {[%clk 0:02:02]}  b4 {[%clk 0:01:52]} 30. axb4 {[%clk 0:01:56]}  axb4 {[%clk 0:01:53]} 31. Kd4 {[%clk 0:01:56]}  c3 {[%clk 0:01:54]} 32. bxc3 {[%clk 0:01:56]}  b3 {[%clk 0:01:53]} 33. Kd3 {[%clk 0:01:56]}  Kf8 {[%clk 0:01:50]} 34. Kd2 {[%clk 0:01:56]} 1-0


[Site "https://www.chess.com"]